{"text_format":"3","workbook":"xlsx","n_sheets":6,"sheets":["بدء","لوحة المعلومات","النفقات والدخل","تقرير الموازنة","قوائم البيانات","PivotTable للفئة"],"not_rendered":{"charts":3,"defined_names":23,"pivot_tables":2},"read":"whole","date_system":"1900"}

{"sheet":"بدء","index":0,"n_rows":8,"n_cols":2,"rows_kept":8}
[null,"حول القالب"]
[null,"استخدم هذا القالب لإنشاء موازنة منزلية نصف شهرية."]
[null,"تحتوي ورقة عمل لوحة المعلومات على مخططات للإجماليات الشهرية والسنوية، كما تحتوي على جدول الدخل والنفقات نصف الشهرية."]
[null,"أدخل الفئات في ورقة عمل قوائم البيانات والقيم في ورقة عمل الدخل والنفقات."]
[null,"تحديث PivotTable في ورقة عمل \"تقرير الموازنة\"."]
[null,"ملاحظة:"]
[null,"تم توفير إرشادات إضافية في العمود A في جميع أوراق العمل. تم إخفاء هذا النص عن قصد. لإزالة النص، حدد العمود A، ثم حدد \"حذف\". "]
[null,"لمعرفة المزيد حول الجدول، اضغط على SHIFT ثم F10 ضمن جدول وحدد الخيار \"جدول\"، ثم حدد \"النص البديل\". بالنسبة إلى PivotTables، اضغط على SHIFT ثم F10 داخل جدول، وحدّد خيارات PIVOTTABLE، ثم حدد علامة التبويب \"النص البديل\"."]

{"sheet":"لوحة المعلومات","index":1,"n_rows":12,"n_cols":15,"rows_kept":12,"merged":[[0,1,0,13],[1,2,1,7]]}
["يمكنك إنشاء لوحة معلومات للإجماليات الشهرية والسنوية والدخل والنفقات نصف الشهرية في ورقة العمل هذه. توجد تعليمات مفيدة حول كيفية استخدام ورقة العمل هذه في الخلايا الموجودة في هذا العمود. يوجد عنوان هذا المصنف في الخلية على اليمين وعنوان ورقة العمل في الخلية O1.","موازنة المنزل نصف الشهرية",{"$nulls":12},"لوحة المعلومات"]
["حدد شريط التمرير في الخلية C2 لتغيير الشهر في الخلية على اليمين ولتغيير السنة في الخلية I2، حدد شريط التمرير في الخلية J2.",{"$f":"CHOOSE(MonthNumber,\"يناير\",\"فبراير\",\"مارس\",\"أبريل\",\"مايو\",\"يونيو\",\"يوليو\",\"أغسطس\",\"سبتمبر\",\"أكتوبر\",\"نوفمبر\",\"ديسمبر\")","v":"ديسمبر"},12,{"$nulls":5},{"$f":"YEAR(TODAY())","v":2022}]
["تكون تسمية \"إجماليات الشهر\" في الخلية على اليمين وتسمية \"الإجماليات السنوية\" في الخلية I3.","إجماليات الشهر",{"$nulls":6},"الإجماليات السنوية"]
["مخطط شريطي لمقارنة إجماليات الدخل الشهري لإجماليات النفقات الشهرية في الخلية C4، ومخطط شريطي لمقارنة إجماليات الدخل السنوي لإجماليات النفقات السنوية في الخلية J4. توجد الإرشادات التالية في الخلية A8.","الدخل",null,{"$f":"MonthlyExpendituresTotals","v":{"v":0,"d":"ر.س.‏ 0"}},{"$nulls":4},"الدخل",null,null,{"$f":"AnnualExpendituresTotals","v":{"v":10742,"d":"ر.س.‏ 10,742"}}]
[null,"النفقات",null,{"$f":"MonthlyIncomeTotals","v":{"v":0,"d":"ر.س.‏ 0"}},{"$nulls":4},"النفقات",null,null,{"$f":"AnnualIncomeTotals","v":{"v":13200,"d":"ر.س.‏ 13,200"}}]
[]
[]
["يتم تحديث جدول لوحة المعلومات الذي يبدأ في الخلية على اليمين بشكل تلقائي.","الفئة","يناير","فبراير","مارس","أبريل","مايو","يونيو","يوليو","أغسطس","سبتمبر","أكتوبر","نوفمبر","ديسمبر","خط المؤشر"]
[null,"الدخل من 1 إلى 15",{"$f":"SUMIFS(الدخل[المبلغ],الدخل[التاريخ],\"<=\"&DtMiddle,الدخل[التاريخ],\">=\"&DtStart)","v":{"v":0,"d":"ر.س.‏ 0.00"}},{"$f":"SUMIFS(الدخل[المبلغ],الدخل[التاريخ],\"<=\"&DtMiddle,الدخل[التاريخ],\">=\"&DtStart)","v":{"v":0,"d":"ر.س.‏ 0.00"}},{"$f":"SUMIFS(الدخل[المبلغ],الدخل[التاريخ],\"<=\"&DtMiddle,الدخل[التاريخ],\">=\"&DtStart)","v":{"v":1300,"d":"ر.س.‏ 1,300.00"}},{"$f":"SUMIFS(الدخل[المبلغ],الدخل[التاريخ],\"<=\"&DtMiddle,الدخل[التاريخ],\">=\"&DtStart)","v":{"v":2600,"d":"ر.س.‏ 2,600.00"}},{"$f":"SUMIFS(الدخل[المبلغ],الدخل[التاريخ],\"<=\"&DtMiddle,الدخل[التاريخ],\">=\"&DtStart)","v":{"v":2600,"d":"ر.س.‏ 2,600.00"}},{"$f":"SUMIFS(الدخل[المبلغ],الدخل[التاريخ],\"<=\"&DtMiddle,الدخل[التاريخ],\">=\"&DtStart)","v":{"v":0,"d":"ر.س.‏ 0.00"}},{"$f":"SUMIFS(الدخل[المبلغ],الدخل[التاريخ],\"<=\"&DtMiddle,الدخل[التاريخ],\">=\"&DtStart)","v":{"v":0,"d":"ر.س.‏ 0.00"}},{"$f":"SUMIFS(الدخل[المبلغ],الدخل[التاريخ],\"<=\"&DtMiddle,الدخل[التاريخ],\">=\"&DtStart)","v":{"v":0,"d":"ر.س.‏ 0.00"}},{"$f":"SUMIFS(الدخل[المبلغ],الدخل[التاريخ],\"<=\"&DtMiddle,الدخل[التاريخ],\">=\"&DtStart)","v":{"v":0,"d":"ر.س.‏ 0.00"}},{"$f":"SUMIFS(الدخل[المبلغ],الدخل[التاريخ],\"<=\"&DtMiddle,الدخل[التاريخ],\">=\"&DtStart)","v":{"v":0,"d":"ر.س.‏ 0.00"}},{"$f":"SUMIFS(الدخل[المبلغ],الدخل[التاريخ],\"<=\"&DtMiddle,الدخل[التاريخ],\">=\"&DtStart)","v":{"v":0,"d":"ر.س.‏ 0.00"}},{"$f":"SUMIFS(الدخل[المبلغ],الدخل[التاريخ],\"<=\"&DtMiddle,الدخل[التاريخ],\">=\"&DtStart)","v":{"v":0,"d":"ر.س.‏ 0.00"}}]
[null,"الدخل 16- نهاية الشهر",{"$f":"SUMIFS(الدخل[المبلغ],الدخل[التاريخ],\"<=\"&DtEnd,الدخل[التاريخ],\">=\"&DtMiddle+1)","v":{"v":0,"d":"ر.س.‏ 0.00"}},{"$f":"SUMIFS(الدخل[المبلغ],الدخل[التاريخ],\"<=\"&DtEnd,الدخل[التاريخ],\">=\"&DtMiddle+1)","v":{"v":0,"d":"ر.س.‏ 0.00"}},{"$f":"SUMIFS(الدخل[المبلغ],الدخل[التاريخ],\"<=\"&DtEnd,الدخل[التاريخ],\">=\"&DtMiddle+1)","v":{"v":3100,"d":"ر.س.‏ 3,100.00"}},{"$f":"SUMIFS(الدخل[المبلغ],الدخل[التاريخ],\"<=\"&DtEnd,الدخل[التاريخ],\">=\"&DtMiddle+1)","v":{"v":3100,"d":"ر.س.‏ 3,100.00"}},{"$f":"SUMIFS(الدخل[المبلغ],الدخل[التاريخ],\"<=\"&DtEnd,الدخل[التاريخ],\">=\"&DtMiddle+1)","v":{"v":500,"d":"ر.س.‏ 500.00"}},{"$f":"SUMIFS(الدخل[المبلغ],الدخل[التاريخ],\"<=\"&DtEnd,الدخل[التاريخ],\">=\"&DtMiddle+1)","v":{"v":0,"d":"ر.س.‏ 0.00"}},{"$f":"SUMIFS(الدخل[المبلغ],الدخل[التاريخ],\"<=\"&DtEnd,الدخل[التاريخ],\">=\"&DtMiddle+1)","v":{"v":0,"d":"ر.س.‏ 0.00"}},{"$f":"SUMIFS(الدخل[المبلغ],الدخل[التاريخ],\"<=\"&DtEnd,الدخل[التاريخ],\">=\"&DtMiddle+1)","v":{"v":0,"d":"ر.س.‏ 0.00"}},{"$f":"SUMIFS(الدخل[المبلغ],الدخل[التاريخ],\"<=\"&DtEnd,الدخل[التاريخ],\">=\"&DtMiddle+1)","v":{"v":0,"d":"ر.س.‏ 0.00"}},{"$f":"SUMIFS(الدخل[المبلغ],الدخل[التاريخ],\"<=\"&DtEnd,الدخل[التاريخ],\">=\"&DtMiddle+1)","v":{"v":0,"d":"ر.س.‏ 0.00"}},{"$f":"SUMIFS(الدخل[المبلغ],الدخل[التاريخ],\"<=\"&DtEnd,الدخل[التاريخ],\">=\"&DtMiddle+1)","v":{"v":0,"d":"ر.س.‏ 0.00"}},{"$f":"SUMIFS(الدخل[المبلغ],الدخل[التاريخ],\"<=\"&DtEnd,الدخل[التاريخ],\">=\"&DtMiddle+1)","v":{"v":0,"d":"ر.س.‏ 0.00"}}]
[null,"النفقات من 1 إلى 15",{"$f":"SUMIFS(النفقات[المبلغ],النفقات[التاريخ],\"<=\"&DtMiddle+1,النفقات[التاريخ],\">=\"&DtStart)","v":{"v":0,"d":"ر.س.‏ 0.00"}},{"$f":"SUMIFS(النفقات[المبلغ],النفقات[التاريخ],\"<=\"&DtMiddle+1,النفقات[التاريخ],\">=\"&DtStart)","v":{"v":0,"d":"ر.س.‏ 0.00"}},{"$f":"SUMIFS(النفقات[المبلغ],النفقات[التاريخ],\"<=\"&DtMiddle+1,النفقات[التاريخ],\">=\"&DtStart)","v":{"v":1225,"d":"ر.س.‏ 1,225.00"}},{"$f":"SUMIFS(النفقات[المبلغ],النفقات[التاريخ],\"<=\"&DtMiddle+1,النفقات[التاريخ],\">=\"&DtStart)","v":{"v":5150,"d":"ر.س.‏ 5,150.00"}},{"$f":"SUMIFS(النفقات[المبلغ],النفقات[التاريخ],\"<=\"&DtMiddle+1,النفقات[التاريخ],\">=\"&DtStart)","v":{"v":2792,"d":"ر.س.‏ 2,792.00"}},{"$f":"SUMIFS(النفقات[المبلغ],النفقات[التاريخ],\"<=\"&DtMiddle+1,النفقات[التاريخ],\">=\"&DtStart)","v":{"v":0,"d":"ر.س.‏ 0.00"}},{"$f":"SUMIFS(النفقات[المبلغ],النفقات[التاريخ],\"<=\"&DtMiddle+1,النفقات[التاريخ],\">=\"&DtStart)","v":{"v":0,"d":"ر.س.‏ 0.00"}},{"$f":"SUMIFS(النفقات[المبلغ],النفقات[التاريخ],\"<=\"&DtMiddle+1,النفقات[التاريخ],\">=\"&DtStart)","v":{"v":0,"d":"ر.س.‏ 0.00"}},{"$f":"SUMIFS(النفقات[المبلغ],النفقات[التاريخ],\"<=\"&DtMiddle+1,النفقات[التاريخ],\">=\"&DtStart)","v":{"v":0,"d":"ر.س.‏ 0.00"}},{"$f":"SUMIFS(النفقات[المبلغ],النفقات[التاريخ],\"<=\"&DtMiddle+1,النفقات[التاريخ],\">=\"&DtStart)","v":{"v":0,"d":"ر.س.‏ 0.00"}},{"$f":"SUMIFS(النفقات[المبلغ],النفقات[التاريخ],\"<=\"&DtMiddle+1,النفقات[التاريخ],\">=\"&DtStart)","v":{"v":0,"d":"ر.س.‏ 0.00"}},{"$f":"SUMIFS(النفقات[المبلغ],النفقات[التاريخ],\"<=\"&DtMiddle+1,النفقات[التاريخ],\">=\"&DtStart)","v":{"v":0,"d":"ر.س.‏ 0.00"}}]
[null,"النفقات 16- نهاية الشهر",{"$f":"SUMIFS(النفقات[المبلغ],النفقات[التاريخ],\"<=\"&DtEnd,النفقات[التاريخ],\">=\"&DtMiddle+1)","v":{"v":0,"d":"ر.س.‏ 0.00"}},{"$f":"SUMIFS(النفقات[المبلغ],النفقات[التاريخ],\"<=\"&DtEnd,النفقات[التاريخ],\">=\"&DtMiddle+1)","v":{"v":0,"d":"ر.س.‏ 0.00"}},{"$f":"SUMIFS(النفقات[المبلغ],النفقات[التاريخ],\"<=\"&DtEnd,النفقات[التاريخ],\">=\"&DtMiddle+1)","v":{"v":200,"d":"ر.س.‏ 200.00"}},{"$f":"SUMIFS(النفقات[المبلغ],النفقات[التاريخ],\"<=\"&DtEnd,النفقات[التاريخ],\">=\"&DtMiddle+1)","v":{"v":875,"d":"ر.س.‏ 875.00"}},{"$f":"SUMIFS(النفقات[المبلغ],النفقات[التاريخ],\"<=\"&DtEnd,النفقات[التاريخ],\">=\"&DtMiddle+1)","v":{"v":500,"d":"ر.س.‏ 500.00"}},{"$f":"SUMIFS(النفقات[المبلغ],النفقات[التاريخ],\"<=\"&DtEnd,النفقات[التاريخ],\">=\"&DtMiddle+1)","v":{"v":0,"d":"ر.س.‏ 0.00"}},{"$f":"SUMIFS(النفقات[المبلغ],النفقات[التاريخ],\"<=\"&DtEnd,النفقات[التاريخ],\">=\"&DtMiddle+1)","v":{"v":0,"d":"ر.س.‏ 0.00"}},{"$f":"SUMIFS(النفقات[المبلغ],النفقات[التاريخ],\"<=\"&DtEnd,النفقات[التاريخ],\">=\"&DtMiddle+1)","v":{"v":0,"d":"ر.س.‏ 0.00"}},{"$f":"SUMIFS(النفقات[المبلغ],النفقات[التاريخ],\"<=\"&DtEnd,النفقات[التاريخ],\">=\"&DtMiddle+1)","v":{"v":0,"d":"ر.س.‏ 0.00"}},{"$f":"SUMIFS(النفقات[المبلغ],النفقات[التاريخ],\"<=\"&DtEnd,النفقات[التاريخ],\">=\"&DtMiddle+1)","v":{"v":0,"d":"ر.س.‏ 0.00"}},{"$f":"SUMIFS(النفقات[المبلغ],النفقات[التاريخ],\"<=\"&DtEnd,النفقات[التاريخ],\">=\"&DtMiddle+1)","v":{"v":0,"d":"ر.س.‏ 0.00"}},{"$f":"SUMIFS(النفقات[المبلغ],النفقات[التاريخ],\"<=\"&DtEnd,النفقات[التاريخ],\">=\"&DtMiddle+1)","v":{"v":0,"d":"ر.س.‏ 0.00"}}]

{"sheet":"النفقات والدخل","index":2,"n_rows":36,"n_cols":9,"rows_kept":36,"merged":[[0,1,0,6],[0,7,0,8]]}
["قم بإنشاء قائمة الدخل والنفقات في ورقة العمل هذه. توجد تعليمات مفيدة حول كيفية استخدام ورقة العمل هذه في الخلايا الموجودة في هذا العمود. يوجد عنوان المصنف في الخلية على اليمين وعنوان ورقة العمل في الخلية H1.",{"$f":"Semi_Monthly_Home_Budget_Title","v":"موازنة المنزل نصف الشهرية"},{"$nulls":5},"الدخل والنفقات"]
["تكون تسمية الدخل في الخلية على اليمين وتسمية «النفقات» في الخلية F2.","الدخل",{"$nulls":3},"النفقات"]
["أدخل التفاصيل في جدول الدخل بدءًا من الخلية على اليمين وفي جدول «النفقات» بدءًا من الخلية F3.","التاريخ","الوصف","المبلغ",null,"التاريخ","الفئة","الوصف","المبلغ"]
[null,{"$f":"TODAY()","v":"2022-05-19"},"مكافأة",{"v":500,"d":"ر.س.‏ 500.00"},null,{"$f":"TODAY()","v":"2022-05-19"},"متطلبات طبية","التأمين",{"v":500,"d":"ر.س.‏ 500.00"}]
[null,{"$f":"TODAY()-14","v":"2022-05-05"},"شيك راتب ديفيد",{"v":1300,"d":"ر.س.‏ 1,300.00"},null,{"$f":"TODAY()-7","v":"2022-05-12"},"المنزل","الرهن",{"v":1000,"d":"ر.س.‏ 1,000.00"}]
[null,{"$f":"TODAY()-14","v":"2022-05-05"},"شيك راتب بات",{"v":1300,"d":"ر.س.‏ 1,300.00"},null,"2022-05-12","المنزل","الكهرباء",{"v":100,"d":"ر.س.‏ 100.00"}]
[null,{"$f":"TODAY()-28","v":"2022-04-21"},"شيك راتب ديفيد",{"v":1500,"d":"ر.س.‏ 1,500.00"},null,"2022-05-12","المنزل","المياه/الصرف الصحي",{"v":50,"d":"ر.س.‏ 50.00"}]
[null,{"$f":"TODAY()-28","v":"2022-04-21"},"شيك راتب بات",{"v":1600,"d":"ر.س.‏ 1,600.00"},null,"2022-05-12","المنزل","النفايات",{"v":25,"d":"ر.س.‏ 25.00"}]
[null,{"$f":"TODAY()-42","v":"2022-04-07"},"شيك راتب ديفيد",{"v":1300,"d":"ر.س.‏ 1,300.00"},null,"2022-05-12","المنزل","هاتف جوال",{"v":100,"d":"ر.س.‏ 100.00"}]
[null,{"$f":"TODAY()-42","v":"2022-04-07"},"شيك راتب بات",{"v":1300,"d":"ر.س.‏ 1,300.00"},null,"2022-05-12","المنزل","هاتف جوال",{"v":30,"d":"ر.س.‏ 30.00"}]
[null,{"$f":"TODAY()-56","v":"2022-03-24"},"شيك راتب ديفيد",{"v":1500,"d":"ر.س.‏ 1,500.00"},null,"2022-05-12","المنزل","الرهن",{"v":50,"d":"ر.س.‏ 50.00"}]
[null,{"$f":"TODAY()-56","v":"2022-03-24"},"شيك راتب بات",{"v":1600,"d":"ر.س.‏ 1,600.00"},null,"2022-05-12","المنزل","هاتف جوال",{"v":50,"d":"ر.س.‏ 50.00"}]
[null,{"$f":"TODAY()-70","v":"2022-03-10"},"شيك راتب ديفيد",{"v":1300,"d":"ر.س.‏ 1,300.00"},null,{"$f":"TODAY()-7","v":"2022-05-12"},"المنزل","هاتف جوال",{"v":25,"d":"ر.س.‏ 25.00"}]
[{"$nulls":5},{"$f":"TODAY()-8","v":"2022-05-11"},"المنزل","الكهرباء",{"v":100,"d":"ر.س.‏ 100.00"}]
[{"$nulls":5},{"$f":"TODAY()-9","v":"2022-05-10"},"الترفيه","الأفلام",{"v":37,"d":"ر.س.‏ 37.00"}]
[{"$nulls":5},{"$f":"TODAY()-10","v":"2022-05-09"},"الطعام","البقالة",{"v":350,"d":"ر.س.‏ 350.00"}]
[{"$nulls":5},{"$f":"TODAY()-11","v":"2022-05-08"},"الطعام","الطعام خارج المنزل",{"v":75,"d":"ر.س.‏ 75.00"}]
[{"$nulls":5},{"$f":"TODAY()-12","v":"2022-05-07"},"الأطفال","مبلغ الغداء",{"v":150,"d":"ر.س.‏ 150.00"}]
[{"$nulls":5},{"$f":"TODAY()-13","v":"2022-05-06"},"حسابات الاستثمار","المدخرات",{"v":250,"d":"ر.س.‏ 250.00"}]
[{"$nulls":5},{"$f":"TODAY()-14","v":"2022-05-05"},"حسابات الاستثمار","حساب الاستثمار",{"v":250,"d":"ر.س.‏ 250.00"}]
[{"$nulls":5},{"$f":"TODAY()-15","v":"2022-05-04"},"أسباب شخصية","نادي الصحة/ اللياقة البدنية",{"v":100,"d":"ر.س.‏ 100.00"}]
[{"$nulls":5},{"$f":"TODAY()-16","v":"2022-05-03"},"الحيوانات الأليفة","الطعام",{"v":50,"d":"ر.س.‏ 50.00"}]
[{"$nulls":5},{"$f":"TODAY()-20","v":"2022-04-29"},"الحيوانات الأليفة","التجميل",{"v":50,"d":"ر.س.‏ 50.00"}]
[{"$nulls":5},{"$f":"TODAY()-20","v":"2022-04-29"},"الحيوانات الأليفة","أخرى",{"v":50,"d":"ر.س.‏ 50.00"}]
[{"$nulls":5},{"$f":"TODAY()-25","v":"2022-04-24"},"وسائل النقل","دفعة السيارة 1 ",{"v":300,"d":"ر.س.‏ 300.00"}]
[{"$nulls":5},{"$f":"TODAY()-25","v":"2022-04-24"},"وسائل النقل","دفعة السيارة 2 ",{"v":350,"d":"ر.س.‏ 350.00"}]
[{"$nulls":5},{"$f":"TODAY()-25","v":"2022-04-24"},"وسائل النقل","تأمين السيارة",{"v":50,"d":"ر.س.‏ 50.00"}]
[{"$nulls":5},{"$f":"TODAY()-30","v":"2022-04-19"},"وسائل النقل","الوقود",{"v":50,"d":"ر.س.‏ 50.00"}]
[{"$nulls":5},{"$f":"TODAY()-31","v":"2022-04-18"},"وسائل النقل","الوقود",{"v":25,"d":"ر.س.‏ 25.00"}]
[{"$nulls":5},{"$f":"TODAY()-42","v":"2022-04-07"},"وسائل النقل","دفعة السيارة 2 ",{"v":150,"d":"ر.س.‏ 150.00"}]
[{"$nulls":5},{"$f":"TODAY()-45","v":"2022-04-04"},"المنزل","الرهن",{"v":5000,"d":"ر.س.‏ 5,000.00"}]
[{"$nulls":5},{"$f":"TODAY()-50","v":"2022-03-30"},"المنزل","الكهرباء",{"v":200,"d":"ر.س.‏ 200.00"}]
[{"$nulls":5},{"$f":"TODAY()-65","v":"2022-03-15"},"المنزل","هاتف جوال",{"v":100,"d":"ر.س.‏ 100.00"}]
[{"$nulls":5},{"$f":"TODAY()-70","v":"2022-03-10"},"المنزل","النفايات",{"v":50,"d":"ر.س.‏ 50.00"}]
[{"$nulls":5},{"$f":"TODAY()-75","v":"2022-03-05"},"المنزل","الرهن",{"v":1000,"d":"ر.س.‏ 1,000.00"}]
[{"$nulls":5},{"$f":"TODAY()-78","v":"2022-03-02"},"الترفيه","الأفلام",{"v":75,"d":"ر.س.‏ 75.00"}]

{"sheet":"تقرير الموازنة","index":3,"n_rows":26,"n_cols":6,"rows_kept":26,"merged":[[0,1,0,4],[1,1,1,3],[4,3,4,5]]}
["قم بإنشاء تقرير الموازنة في ورقة العمل هذه. توجد تعليمات مفيدة حول كيفية استخدام ورقة العمل هذه في الخلايا الموجودة في هذا العمود. يوجد عنوان المصنف في الخلية على اليمين وعنوان ورقة العمل في الخلية F1.",{"$f":"Semi_Monthly_Home_Budget_Title","v":"موازنة المنزل نصف الشهرية"},{"$nulls":3},"تقرير الموازنة"]
["حدد السنوات أو أرباع السنة أو الأشهر أو الأيام، ثم استخدم شريط التمرير في الخلية على اليمين للحصول على PivotTable النفقات للفترة المحددة. يوجد مقسم طريقة عرض الفئة لتصفية بيانات PivotTable في الخلية E2 ومقسم طريقة عرض شريط الوصف في الخلية F2.","المخطط الزمني للتصفية موجود في هذه الخلية.",null,null,"يوجد مقسم طريقة العرض لتصفية بيانات PivotTable استنادا إلى الفئة في هذه الخلية.","يوجد مقسم طريقة العرض لتصفية بيانات PivotTable استنادا إلى الوصف في هذه الخلية."]
["يوجد تلميح في الخلية الموجودة على اليسار.","اضغط على Shift+F10 في PivotTable النفقات، ثم حدد تحديث لتحديث البيانات على هذه الورقة، أو حدد تحديث ضمن علامة التبويب."]
["توجد تسمية النفقات في خلية على اليمين.","النفقات"]
["يبدأ PivotTable الذي يعرض النفقات في خلية على اليمين. توجد تسمية إجماليات الفئات في الخلية D4.","تسميات الصفوف","مجموع من المبلغ","إجماليات الفئات"]
["يوجد المخطط الدائري الذي يقارن بين إجمالي كل فئة في الخلية D6.","دفعة السيارة 1 ",{"v":300,"d":"ر.س.‏ 300.00"},"مخطط دائري يقارن بين إجمالي كل الفئة"]
[null,"أخرى",{"v":50,"d":"ر.س.‏ 50.00"}]
[null,"الأفلام",{"v":112,"d":"ر.س.‏ 112.00"}]
[null,"البقالة",{"v":350,"d":"ر.س.‏ 350.00"}]
[null,"التأمين",{"v":500,"d":"ر.س.‏ 500.00"}]
[null,"التجميل",{"v":50,"d":"ر.س.‏ 50.00"}]
[null,"الرهن",{"v":7050,"d":"ر.س.‏ 7,050.00"}]
[null,"الطعام",{"v":50,"d":"ر.س.‏ 50.00"}]
[null,"الطعام خارج المنزل",{"v":75,"d":"ر.س.‏ 75.00"}]
[null,"الكهرباء",{"v":400,"d":"ر.س.‏ 400.00"}]
[null,"المدخرات",{"v":250,"d":"ر.س.‏ 250.00"}]
[null,"المياه/الصرف الصحي",{"v":50,"d":"ر.س.‏ 50.00"}]
[null,"النفايات",{"v":75,"d":"ر.س.‏ 75.00"}]
[null,"الوقود",{"v":75,"d":"ر.س.‏ 75.00"}]
[null,"تأمين السيارة",{"v":50,"d":"ر.س.‏ 50.00"}]
[null,"حساب الاستثمار",{"v":250,"d":"ر.س.‏ 250.00"}]
[null,"دفعة السيارة 2 ",{"v":500,"d":"ر.س.‏ 500.00"}]
[null,"مبلغ الغداء",{"v":150,"d":"ر.س.‏ 150.00"}]
[null,"نادي الصحة/ اللياقة البدنية",{"v":100,"d":"ر.س.‏ 100.00"}]
[null,"هاتف جوال",{"v":305,"d":"ر.س.‏ 305.00"}]
[null,"الإجمالي الكلي",{"v":10742,"d":"ر.س.‏ 10,742.00"}]

{"sheet":"قوائم البيانات","index":4,"n_rows":8,"n_cols":13,"rows_kept":8,"merged":[[0,1,0,11]]}
["أدخل بيانات الفئة في ورقة العمل هذه لملء القوائم المنسدلة في جدول \"النفقات\" في ورقة عمل \"النفقات والدخل\". تعديل أسماء الفئات أو الأوصاف أسفل كل فئة لتحديث القوائم. توجد تعليمات مفيدة حول كيفية استخدام ورقة العمل هذه في الخلايا الموجودة في هذا العمود. يوجد عنوان المصنف في الخلية على اليمين وعنوان ورقة العمل في الخلية M1.",{"$f":"Semi_Monthly_Home_Budget_Title","v":"موازنة المنزل نصف الشهرية"},{"$nulls":10},"قوائم البيانات"]
["يوجد تلميح في الخلية الموجودة على اليسار.","«إعداد»        بيانات «الفئة» أدناه تملأ القوائم المنسدلة في جدول \"النفقات\" في ورقة عمل \"النفقات والدخل\" تعديل أسماء الفئات أو الأوصاف الموجودة أسفل كل فئة لتحديث القوائم."]
["أدخل أسماء الفئات أو أوصافها أو قم بتعديلها أسفل كل فئة في الجدول بدءًا من الخلية الموجودة على اليمين.","المنزل","الترفيه","الطعام","الهدايا /التبرعات","الأطفال","حسابات الاستثمار","متطلبات طبية","أخرى","أسباب شخصية","الحيوانات الأليفة","الضرائب/الشؤون القانونية","وسائل النقل"]
[null,"الرهن","الأفلام","البقالة","عمل خيري 1","ملابس","حساب التقاعد الفردي","طبيب/عيادة","أخرى","الملابس","الطعام","فيدرالي","دفعة السيارة 1 "]
[null,"الكهرباء","الفيديو/الأفلام","الطعام خارج المنزل","عمل خيري 2","دمى/ألعاب","المدخرات","التأمين","مستحقات المؤسسة","الشعر/الأظافر","المستلزمات","الولاية","دفعة السيارة 2 "]
[null,"المياه/الصرف الصحي","الموسيقى",null,"عمل خيري 3","مبلغ الغداء","الجاري",null,null,"الغسيل الجاف","متطلبات طبية","المحلية","تأمين السيارة"]
[null,"النفايات","الحفلات الموسيقية/ المسرح",null,"هدية","المستحقات/الرسوم","تقاعد",null,null,"نادي الصحة/ اللياقة البدنية","التجميل","أخرى","الترخيص/التسجيل"]
[null,"هاتف جوال","الأحداث الرياضية",null,null,"مستلزمات المدرسة","حساب الاستثمار",null,null,"التسوق","أخرى","محامي","الوقود"]

{"sheet":"PivotTable للفئة","index":5,"n_rows":13,"n_cols":13,"rows_kept":13,"hidden":true}
[null,"موازنة المنزل نصف الشهرية",{"$nulls":10},"فئة PIVOT"]
[null,"PivotTable هذا هو مصدر بيانات PivotChart \"إجماليات الفئة”  في تقرير الموازنة. "]
[null,"تسميات الصفوف","مجموع من المبلغ"]
[null,"أسباب شخصية",{"v":100,"d":"ر.س.‏ 100"}]
[null,"الأطفال",{"v":150,"d":"ر.س.‏ 150"}]
[null,"الترفيه",{"v":112,"d":"ر.س.‏ 112"}]
[null,"الحيوانات الأليفة",{"v":150,"d":"ر.س.‏ 150"}]
[null,"الطعام",{"v":425,"d":"ر.س.‏ 425"}]
[null,"المنزل",{"v":7880,"d":"ر.س.‏ 7,880"}]
[null,"حسابات الاستثمار",{"v":500,"d":"ر.س.‏ 500"}]
[null,"متطلبات طبية",{"v":500,"d":"ر.س.‏ 500"}]
[null,"وسائل النقل",{"v":925,"d":"ر.س.‏ 925"}]
[null,"الإجمالي الكلي",{"v":10742,"d":"ر.س.‏ 10,742"}]